bitfinex/quotes_SOLUSD_20230113
["timestamp","ask_amount","ask_price","bid_price","bid_amount"]
[1673584485050,40.46683801,17.058,17.036,108.6845]
[1673584485465,30.46683801,17.058,17.036,108.6845]
[1673584485804,20.0,17.059,17.036,108.6845]
[1673584485994,50.46683801,17.059,17.036,108.6845]
[1673584487165,50.46683801,17.059,17.037,0.96]
[1673584487992,10.0,17.058,17.037,0.96]
[1673584488210,10.0,17.058,17.036,108.6845]
[1673584488211,17.0,17.057,17.036,108.6845]
[1673584488524,10.0,17.056,17.036,108.6845]
[1673584488928,30.46683801,17.057,17.036,108.6845]
[1673584489147,20.0,17.059,17.037,10.0]
[1673584489785,20.0,17.059,17.038,0.96]
[1673584491374,10.0,17.061,17.038,0.96]
[1673584491375,20.0,17.06,17.038,0.96]
[1673584491577,66.89,17.06,17.038,0.96]
[1673584492003,46.89,17.06,17.04,46.91]
[1673584492215,108.7304,17.064,17.041,20.0]
[1673584492413,108.7304,17.064,17.042,10.96]
[1673584492627,108.7304,17.064,17.043,20.0]
[1673584492844,56.89,17.07,17.05,46.78]
[1673584492845,46.89,17.07,17.05,46.78]
[1673584493072,46.89,17.07,17.051,119.79235322]
[1673584493272,46.89,17.07,17.051,158.69225462]
[1673584493586,46.89,17.07,17.052,18.8999014]
[1673584493800,46.89,17.07,17.053,20.0]
[1673584494326,46.89,17.07,17.054,19.8599014]
[1673584494733,46.89,17.07,17.055,20.0]
[1673584495275,46.39,17.07,17.056,0.96]
[1673584495457,46.39,17.07,17.057,3.47545322]
[1673584495772,46.39,17.07,17.058,0.96]
[1673584495982,46.39,17.07,17.056,3.47545322]
[1673584496193,46.39,17.07,17.053,3.47545322]
[1673584496401,46.39,17.07,17.054,18.8999014]
[1673584496631,10.0,17.076,17.056,3.47545322]
[1673584497055,10.0,17.072,17.056,3.47545322]
[1673584497244,46.48,17.07,17.056,3.47545322]
[1673584497461,10.0,17.069,17.057,0.96]
[1673584497676,10.0,17.069,17.058,3.47545322]
[1673584497883,10.0,17.076,17.059,0.96]
[1673584498096,10.0,17.076,17.06,3.47545322]
[1673584498636,10.0,17.076,17.059,3.47545322]
[1673584498835,46.52,17.08,17.059,3.47545322]
[1673584499046,10.0,17.087,17.06,46.84]
[1673584499242,10.0,17.087,17.063,3.47545322]
[1673584499455,10.0,17.087,17.063,23.47545322]
[1673584499663,10.0,17.087,17.064,18.8999014]
[1673584499896,10.0,17.087,17.065,3.47545322]
[1673584500113,10.0,17.087,17.065,23.47545322]
[1673584500301,10.0,17.087,17.065,81.04691131]
[1673584500632,10.0,17.087,17.065,42.37535462]
[1673584500841,46.61,17.09,17.07,46.84]
[1673584501049,46.61,17.09,17.071,24.43545322]
[1673584501245,56.61,17.09,17.071,24.43545322]
[1673584501787,10.0,17.09,17.072,18.8999014]
[1673584501997,10.0,17.09,17.073,23.47545322]
[1673584502313,10.0,17.09,17.074,0.96]
[1673584502516,10.0,17.09,17.075,3.47545322]
[1673584502918,10.0,17.09,17.076,0.96]
[1673584503140,10.0,17.09,17.074,3.47545322]
[1673584503454,10.0,17.09,17.075,0.96]
[1673584504414,10.0,17.092,17.075,0.96]
[1673584504626,10.0,17.096,17.075,0.96]
[1673584506184,10.0,17.09,17.074,3.47545322]
[1673584506498,87.07683801,17.09,17.074,3.47545322]
[1673584506719,20.0,17.089,17.066,122.24485322]
[1673584506931,10.0,17.088,17.066,122.24485322]
[1673584507145,40.46683801,17.088,17.066,122.24485322]
[1673584507341,10.0,17.088,17.066,141.14475462]
[1673584508511,10.0,17.088,17.068,3.47545322]
[1673584508722,10.0,17.088,17.067,3.47545322]
[1673584509042,10.0,17.086,17.067,3.47545322]
[1673584509444,47.46683801,17.085,17.066,118.7694]
[1673584509657,10.0,17.084,17.066,118.7694]
[1673584510608,10.0,17.084,17.06,46.84]
[1673584510820,17.0,17.083,17.061,20.0]
[1673584511449,10.0,17.084,17.061,20.0]
[1673584512400,10.0,17.084,17.062,0.96]
[1673584513458,10.0,17.084,17.062,19.8599014]
[1673584513660,10.0,17.084,17.063,20.0]
[1673584514420,10.0,17.082,17.061,20.0]
[1673584514709,10.0,17.082,17.061,38.8999014]
[1673584515432,10.0,17.084,17.062,0.96]
[1673584515642,10.0,17.086,17.062,0.96]
[1673584515967,10.0,17.086,17.063,18.8999014]
[1673584516175,10.0,17.086,17.064,20.0]
[1673584516504,10.0,17.086,17.065,0.96]
[1673584518270,46.64,17.08,17.061,20.0]
[1673584518599,10.0,17.079,17.061,20.0]
[1673584520165,10.0,17.077,17.055,44.85564032]
[1673584520381,17.0,17.076,17.055,44.85564032]
[1673584520580,17.0,17.076,17.05,46.84]
[1673584520810,10.0,17.075,17.05,46.84]
[1673584521332,10.0,17.075,17.051,10.0]
[1673584522402,10.0,17.075,17.05,46.84]
[1673584522618,17.0,17.074,17.05,46.84]
[1673584522822,10.0,17.073,17.05,46.84]
[1673584523351,17.0,17.072,17.051,109.24]
[1673584523563,27.0,17.072,17.051,109.24]
[1673584524088,10.0,17.071,17.051,109.24]
[1673584524279,10.0,17.071,17.052,20.0]
[1673584524492,46.84,17.07,17.052,20.0]
[1673584524812,46.84,17.07,17.037,112.8451]
[1673584524813,27.0,17.069,17.04,47.3]
[1673584525025,27.0,17.069,17.044,109.24]
[1673584525026,10.0,17.067,17.044,109.24]
[1673584525236,18.99109701,17.066,17.044,109.24]
[1673584525445,10.0,17.065,17.044,109.24]
[1673584525657,1.99109701,17.064,17.044,109.24]
[1673584525983,1.99109701,17.069,17.05,46.6]
[1673584526177,10.0,17.076,17.051,0.96]
[1673584526378,10.0,17.076,17.051,20.96]
[1673584526588,40.46683801,17.075,17.051,20.96]
[1673584527747,17.0,17.072,17.051,20.96]
[1673584528062,46.63,17.07,17.051,20.0]
[1673584528387,10.0,17.069,17.051,20.0]
[1673584528602,10.0,17.069,17.048,20.0]
[1673584528813,10.0,17.069,17.047,20.0]
[1673584530593,10.0,17.069,17.048,0.96]
[1673584531445,10.0,17.069,17.049,0.96]
[1673584531973,10.0,17.069,17.05,0.96]
[1673584532288,0.96,17.068,17.044,109.24]
[1673584532470,10.0,17.067,17.044,109.24]
[1673584532687,0.6168401,17.066,17.044,109.24]
[1673584532896,10.0,17.067,17.044,109.24]
[1673584534275,10.0,17.067,17.045,0.96]
[1673584534482,10.0,17.067,17.045,1.92]
[1673584534910,10.0,17.067,17.044,109.24]
[1673584535234,10.0,17.065,17.044,109.24]
[1673584535733,1.36846785,17.064,17.037,112.8451]
[1673584535947,1.36846785,17.062,17.038,115.0161]
[1673584536154,1.36846785,17.062,17.041,20.0]
[1673584536911,10.0,17.063,17.041,20.0]
[1673584537318,111.5777,17.064,17.041,20.0]
[1673584538071,111.5777,17.064,17.042,0.96]
[1673584538890,111.5777,17.064,17.043,10.0]
[1673584539102,111.5777,17.064,17.044,20.96]
[1673584539735,111.5777,17.064,17.045,20.0]
[1673584539957,111.5777,17.064,17.043,20.0]
[1673584540145,111.5777,17.064,17.044,0.96]
[1673584540356,111.5777,17.064,17.045,0.96]
[1673584541737,30.46683801,17.066,17.045,0.96]
[1673584541738,110.6982,17.073,17.051,3.47545322]
[1673584541948,110.6982,17.073,17.051,13.47545322]
[1673584542141,110.6982,17.073,17.052,20.0]
[1673584542352,110.6982,17.073,17.054,3.47545322]
[1673584542785,10.0,17.072,17.055,0.96]
[1673584542990,10.0,17.072,17.056,3.47545322]
[1673584543225,10.0,17.072,17.057,0.96]
[1673584543414,110.6982,17.073,17.058,3.47545322]
[1673584543732,110.6982,17.073,17.06,3.47545322]
[1673584543922,141.16503801,17.073,17.055,3.47545322]
[1673584544140,141.16503801,17.073,17.057,3.47545322]
[1673584544358,141.16503801,17.073,17.059,3.47545322]
[1673584544571,10.0,17.072,17.061,3.47545322]
[1673584544893,10.0,17.072,17.062,0.96]
[1673584545406,10.0,17.072,17.057,3.47545322]
[1673584545839,10.0,17.072,17.055,3.47545322]
[1673584547306,40.46683801,17.072,17.055,3.47545322]
[1673584547628,10.0,17.069,17.055,3.47545322]
[1673584547822,10.0,17.069,17.04,47.3]
[1673584548030,50.46683801,17.068,17.047,115.2972]
[1673584548353,40.46683801,17.067,17.047,115.2972]
[1673584548684,10.0,17.067,17.047,115.2972]
[1673584549622,30.46683801,17.066,17.047,115.2972]
[1673584549829,10.0,17.065,17.047,115.2972]
[1673584551726,10.0,17.065,17.048,0.96]
[1673584552132,20.0,17.068,17.048,0.96]
[1673584552552,10.0,17.066,17.048,0.96]
[1673584553508,40.46683801,17.067,17.048,0.96]
[1673584553718,10.0,17.069,17.048,0.96]
[1673584553922,10.0,17.069,17.051,0.79423549]
[1673584554127,30.46683801,17.071,17.053,0.82928416]
[1673584554344,110.6982,17.073,17.052,1.0]
[1673584554560,110.6982,17.073,17.053,0.96]
[1673584555191,40.46683801,17.072,17.054,1.0]
[1673584555402,10.0,17.072,17.054,1.0]
[1673584555593,10.0,17.077,17.056,1.0]
[1673584556016,10.0,17.077,17.054,1.0]
[1673584556235,10.0,17.077,17.056,1.0]
[1673584556441,10.0,17.077,17.055,1.0]
[1673584556662,10.0,17.077,17.056,0.96]
[1673584556870,10.0,17.078,17.056,0.96]
[1673584558563,10.0,17.076,17.061,0.96]
[1673584558959,10.0,17.079,17.061,0.96]
[1673584559183,50.46683801,17.078,17.061,0.96]
[1673584559505,10.0,17.077,17.063,1.0]
[1673584559698,10.0,17.077,17.062,0.96]
[1673584559909,40.46683801,17.077,17.063,0.96]
[1673584560326,10.0,17.077,17.064,0.96]
[1673584560550,10.0,17.079,17.064,0.96]
[1673584560761,80.84160613,17.084,17.064,0.96]
[1673584561076,30.46683801,17.084,17.065,1.0]
[1673584561285,30.46683801,17.084,17.066,0.96]
[1673584561495,30.46683801,17.084,17.067,1.0]
[1673584562111,30.46683801,17.084,17.064,1.0]
[1673584562443,10.0,17.089,17.064,1.0]
[1673584562635,10.0,17.089,17.065,0.96]
[1673584562850,40.46683801,17.086,17.066,1.0]
[1673584563382,10.0,17.085,17.067,0.96]
[1673584563592,10.0,17.085,17.068,1.0]
[1673584564123,10.0,17.085,17.064,1.0]
[1673584564335,10.0,17.081,17.065,0.96]
[1673584564861,46.84,17.09,17.071,1.0]
[1673584565059,10.0,17.09,17.071,21.0]
[1673584565266,10.0,17.09,17.073,1.0]
[1673584565475,40.46683801,17.097,17.072,19.8999014]
[1673584565686,40.46683801,17.097,17.074,1.0]
[1673584565687,10.0,17.097,17.074,1.0]
[1673584565912,10.0,17.097,17.075,1.96]
[1673584566116,10.0,17.097,17.075,40.8599014]
[1673584566328,10.0,17.097,17.076,108.3916]
[1673584566531,70.93367602,17.095,17.077,0.96]
[1673584566734,10.0,17.094,17.077,0.96]
[1673584568010,10.0,17.094,17.075,20.0]
[1673584568212,10.0,17.094,17.071,1.0]
[1673584568213,10.0,17.094,17.071,129.3916]
[1673584568639,10.0,17.092,17.071,129.3916]
[1673584568958,17.0,17.091,17.071,129.3916]
[1673584569167,10.0,17.092,17.071,129.3916]
[1673584570006,17.0,17.091,17.071,129.3916]
[1673584570419,119.1002,17.091,17.071,129.3916]
[1673584570623,10.0,17.09,17.071,129.3916]
[1673584571906,119.1002,17.091,17.071,148.2915014]
[1673584572324,119.1002,17.091,17.072,0.96]
[1673584572854,40.46683801,17.096,17.073,1.0]
[1673584573046,89.8903,17.1,17.08,46.6]
[1673584573259,89.8903,17.1,17.081,133.047]
[1673584573472,10.0,17.099,17.081,133.047]
[1673584575569,10.0,17.104,17.081,133.047]
[1673584575783,10.0,17.104,17.082,18.8999014]
[1673584575993,10.0,17.104,17.083,20.0]
[1673584576331,10.0,17.104,17.084,0.96]
[1673584577258,10.0,17.105,17.085,18.8999014]
[1673584577470,10.0,17.105,17.086,20.0]
[1673584577675,10.0,17.105,17.087,0.96]
[1673584579249,10.0,17.105,17.083,20.0]
[1673584579674,10.0,17.105,17.083,38.8999014]
[1673584580403,10.0,17.103,17.083,38.8999014]
[1673584582002,10.0,17.103,17.084,0.96]
[1673584582402,10.0,17.101,17.084,0.96]
[1673584582632,243.46,17.1,17.081,112.087]
[1673584582834,405.65612801,17.1,17.07,46.84]
[1673584583055,30.46683801,17.099,17.074,118.9785]
[1673584583242,38.92,17.098,17.074,118.9785]
[1673584583452,10.0,17.097,17.074,118.9785]
[1673584583662,37.96,17.096,17.074,118.9785]
[1673584583874,10.0,17.095,17.074,118.9785]
[1673584584084,17.0,17.094,17.075,0.96]
[1673584584532,10.0,17.095,17.075,0.96]
[1673584586192,10.0,17.095,17.075,20.96]
[1673584588091,17.0,17.094,17.075,20.96]
[1673584589030,10.0,17.093,17.075,20.96]
[1673584589244,17.0,17.094,17.075,20.96]
[1673584589576,171.56929,17.1,17.075,20.96]
[1673584589884,166.7586,17.1,17.076,18.8999014]
[1673584590074,166.7586,17.1,17.077,20.0]
[1673584590284,166.7586,17.1,17.078,0.96]
[1673584591353,10.0,17.099,17.078,0.96]
[1673584591872,17.0,17.097,17.077,20.0]
[1673584592110,10.0,17.096,17.075,20.0]
[1673584592282,0.96,17.095,17.074,118.9785]
[1673584592514,10.96,17.094,17.074,118.9785]
[1673584592828,10.96,17.093,17.074,118.9785]
[1673584593133,1.31702071,17.089,17.06,46.6]
[1673584593347,0.96,17.088,17.065,114.2969]
[1673584593540,11.364239,17.087,17.065,114.2969]
[1673584593957,1.364239,17.085,17.065,114.2969]
[1673584594291,10.0,17.085,17.065,114.2969]
[1673584595237,10.0,17.083,17.065,114.2969]
[1673584595431,0.91477953,17.081,17.065,114.2969]
[1673584595645,10.0,17.085,17.065,114.2969]
[1673584595883,10.0,17.085,17.066,20.0]
[1673584596588,10.0,17.085,17.067,0.96]
[1673584597022,10.0,17.085,17.066,20.0]
[1673584597339,10.0,17.083,17.066,20.0]
[1673584598813,10.0,17.083,17.067,0.96]
[1673584599331,17.96,17.082,17.067,0.96]
[1673584599540,10.63941778,17.081,17.066,20.0]
[1673584599857,10.0,17.081,17.066,20.0]
[1673584600680,10.0,17.083,17.066,20.0]
[1673584600895,10.0,17.085,17.066,20.0]
[1673584600896,10.0,17.085,17.067,0.96]
[1673584601116,20.0,17.086,17.067,0.96]
[1673584601324,20.0,17.086,17.067,19.8599014]
[1673584601643,46.61,17.09,17.068,38.8999014]
[1673584601850,46.61,17.09,17.07,46.84]
[1673584602174,56.61,17.09,17.071,20.0]
[1673584602914,56.61,17.09,17.072,0.96]
[1673584603409,10.0,17.089,17.072,0.96]
[1673584603622,56.61,17.09,17.072,0.96]
[1673584604056,10.0,17.089,17.072,0.96]
[1673584604577,46.61,17.09,17.072,0.96]
[1673584604799,114.6352,17.091,17.072,0.96]
[1673584605847,10.0,17.09,17.072,0.96]
[1673584606275,114.6352,17.091,17.072,19.8599014]
[1673584606463,114.6352,17.091,17.073,20.0]
[1673584606676,114.6352,17.091,17.073,134.6522]
[1673584606884,114.6352,17.091,17.074,0.96]
[1673584607318,114.6352,17.091,17.073,134.6522]
[1673584607529,10.0,17.09,17.073,134.6522]
[1673584608584,10.0,17.09,17.074,0.96]
[1673584609085,10.0,17.088,17.06,46.6]
[1673584609303,37.0,17.087,17.065,114.6522]
[1673584609636,20.0,17.087,17.066,28.8999014]
[1673584609844,20.0,17.087,17.066,18.8999014]
[1673584610468,17.0,17.086,17.065,114.6522]
[1673584610997,10.0,17.085,17.065,114.6522]
[1673584611188,17.0,17.084,17.065,114.6522]
[1673584612052,10.0,17.086,17.065,114.6522]
[1673584612266,20.0,17.087,17.066,0.96]
[1673584612572,20.0,17.087,17.066,19.8599014]
[1673584612787,46.84,17.09,17.07,46.6]
[1673584613101,46.84,17.09,17.071,30.0]
[1673584613317,46.84,17.09,17.072,0.96]
[1673584613521,46.84,17.09,17.072,10.96]
[1673584613739,114.6352,17.091,17.073,20.0]
[1673584613944,114.6352,17.091,17.073,133.8614]
[1673584614174,10.0,17.09,17.074,0.96]
[1673584617724,20.0,17.089,17.06,46.6]
[1673584617936,10.0,17.087,17.065,110.7862]
[1673584618124,37.0,17.086,17.065,110.7862]
[1673584618337,37.0,17.086,17.066,19.00696332]
[1673584618560,37.0,17.086,17.065,110.7862]
[1673584618763,10.0,17.085,17.065,129.79316332]
[1673584618984,17.0,17.084,17.065,129.79316332]
[1673584619192,17.0,17.084,17.066,0.96]
[1673584619511,17.0,17.084,17.066,19.96696332]
[1673584620464,10.0,17.085,17.066,19.96696332]
[1673584621316,20.0,17.086,17.066,19.96696332]
[1673584621619,51.45069,17.09,17.067,19.00696332]
[1673584621835,10.0,17.096,17.07,46.84]
[1673584622365,10.0,17.096,17.071,40.92696332]
[1673584622762,10.0,17.09,17.072,19.00696332]
[1673584622972,10.0,17.09,17.073,133.7671]
[1673584623200,10.0,17.09,17.074,0.96]
[1673584623514,10.0,17.09,17.074,19.96696332]
[1673584623827,10.0,17.09,17.075,20.0]
[1673584624227,10.0,17.096,17.076,0.96]
[1673584626040,10.0,17.09,17.075,20.0]
[1673584626242,10.0,17.09,17.074,20.0]
[1673584627285,10.0,17.09,17.075,0.96]
[1673584627499,114.6352,17.091,17.075,0.96]
[1673584627720,114.6352,17.091,17.076,0.96]
[1673584627931,30.46683801,17.096,17.076,0.96]
[1673584628248,166.7586,17.1,17.08,46.6]
[1673584628445,166.7586,17.1,17.081,117.5878]
[1673584628651,166.7586,17.1,17.082,20.96]
[1673584629384,156.7586,17.1,17.082,20.96]
[1673584630241,10.0,17.099,17.082,20.96]
[1673584630568,109.9186,17.1,17.082,20.96]
[1673584630794,10.0,17.107,17.082,20.96]
[1673584630989,40.46683801,17.106,17.083,29.00696332]
[1673584631190,46.61,17.11,17.084,20.0]
[1673584631390,118.62953801,17.109,17.084,39.00696332]
[1673584631611,20.0,17.108,17.09,46.84]
[1673584631919,20.0,17.108,17.091,0.96]
[1673584632123,88.1627,17.109,17.091,20.96]
[1673584632446,88.1627,17.109,17.092,110.5515]
[1673584632676,88.1627,17.109,17.093,20.0]
[1673584632887,88.1627,17.109,17.094,0.96]
[1673584633833,10.0,17.108,17.094,0.96]
[1673584634971,9.5,17.108,17.094,0.96]
[1673584636127,88.1627,17.109,17.094,0.96]
[1673584636547,88.1627,17.109,17.093,0.96]
[1673584636753,10.0,17.108,17.093,20.96]
[1673584637292,10.0,17.108,17.092,119.3982]
[1673584637509,17.0,17.107,17.088,119.0443]
[1673584637691,10.0,17.106,17.088,119.0443]
[1673584639168,98.1627,17.109,17.09,46.84]
[1673584639602,88.1627,17.109,17.09,46.84]
[1673584639806,88.1627,17.109,17.091,0.96]
[1673584640017,118.62953801,17.109,17.091,0.96]
[1673584640221,10.0,17.108,17.091,20.0]
[1673584640638,10.0,17.106,17.091,20.0]
[1673584641072,10.0,17.106,17.089,20.0]
[1673584642107,10.0,17.106,17.09,0.96]
[1673584642543,10.0,17.106,17.088,119.0443]
[1673584642848,10.0,17.104,17.088,119.0443]
[1673584643170,17.0,17.103,17.088,119.0443]
[1673584644648,98.1627,17.109,17.088,119.0443]
[1673584644963,37.0,17.107,17.088,119.0443]
[1673584645173,20.0,17.107,17.088,119.0443]
[1673584645370,20.0,17.107,17.089,1.92]
[1673584645700,30.0,17.108,17.089,1.92]
[1673584645916,88.1627,17.109,17.089,1.92]
[1673584646129,88.1627,17.109,17.089,21.92]
[1673584649474,88.1627,17.109,17.09,46.84]
[1673584649686,17.0,17.108,17.091,20.0]
[1673584650412,40.46683801,17.107,17.09,46.84]
[1673584650629,20.0,17.106,17.088,119.0443]
[1673584650832,17.0,17.105,17.088,119.0443]
[1673584651042,50.46683801,17.106,17.088,119.0443]
[1673584651480,17.0,17.105,17.088,119.0443]
[1673584652097,20.0,17.106,17.089,0.96]
[1673584652411,20.0,17.108,17.09,46.84]
[1673584652830,20.0,17.108,17.091,0.96]
[1673584653156,88.1627,17.109,17.091,0.96]
[1673584653573,17.0,17.108,17.091,0.96]
[1673584653799,27.0,17.108,17.091,0.96]
[1673584653983,27.0,17.108,17.091,20.96]
[1673584654422,10.0,17.107,17.091,20.96]
[1673584654629,17.0,17.106,17.091,20.46]
[1673584654826,17.0,17.106,17.091,20.0]
[1673584657060,118.62953801,17.109,17.091,20.0]
[1673584657271,88.1627,17.109,17.091,20.0]
[1673584657793,10.0,17.108,17.091,39.00696332]
[1673584658208,88.1627,17.109,17.091,39.00696332]
[1673584658423,17.0,17.108,17.091,39.00696332]
[1673584659052,88.1627,17.109,17.091,39.00696332]
[1673584659364,88.1627,17.109,17.092,0.96]
[1673584659584,10.0,17.108,17.092,0.96]
[1673584660924,88.1627,17.109,17.092,19.96696332]
[1673584661133,88.1627,17.109,17.093,20.0]
[1673584661366,88.1627,17.109,17.094,0.96]
[1673584661575,88.1627,17.109,17.095,0.96]
[1673584661767,10.0,17.108,17.096,0.96]
[1673584661973,10.0,17.108,17.093,20.0]
[1673584662194,10.0,17.106,17.093,20.0]
[1673584662739,10.0,17.106,17.091,20.0]
[1673584663348,10.0,17.104,17.091,20.0]
[1673584663777,10.0,17.104,17.074,10.0]
[1673584663987,10.0,17.104,17.08,46.6]
[1673584664203,10.0,17.104,17.083,19.00696332]
[1673584665341,10.0,17.106,17.083,19.00696332]
[1673584665551,10.0,17.108,17.084,19.00696332]
[1673584665766,10.0,17.108,17.083,19.00696332]
[1673584665767,20.0,17.107,17.083,19.00696332]
[1673584666195,88.1627,17.109,17.09,46.6]
[1673584666919,88.1627,17.109,17.091,20.0]
[1673584667269,88.1627,17.109,17.092,0.96]
[1673584668084,10.0,17.108,17.091,20.0]
[1673584669879,10.0,17.106,17.091,20.0]
[1673584671374,17.0,17.105,17.091,20.0]
[1673584672502,31.42683801,17.104,17.088,119.0443]
[1673584672724,27.96,17.103,17.088,119.0443]
[1673584672933,10.0,17.101,17.088,119.0443]
[1673584673138,10.0,17.101,17.08,46.6]
[1673584673352,10.0,17.099,17.083,118.3997]
[1673584674830,19.81214258,17.098,17.08,46.6]
[1673584675037,1.85214258,17.096,17.08,46.6]
[1673584675255,18.85214258,17.096,17.08,46.6]
[1673584675655,18.85214258,17.096,17.081,20.0]
[1673584676091,10.0,17.095,17.081,20.0]
[1673584677020,10.0,17.099,17.081,20.0]
[1673584677468,108.4587,17.1,17.081,20.0]
[1673584677958,10.0,17.099,17.081,20.0]
[1673584679129,10.0,17.097,17.081,20.0]
[1673584680187,10.0,17.097,17.082,0.96]
[1673584680380,10.0,17.099,17.082,0.96]
[1673584680709,10.0,17.099,17.083,0.96]
[1673584681340,10.0,17.099,17.084,0.96]
[1673584681559,10.0,17.099,17.085,0.96]
[1673584681957,10.0,17.099,17.081,20.0]
[1673584682299,10.0,17.097,17.081,20.0]
[1673584682479,10.0,17.095,17.081,20.0]
[1673584684494,10.0,17.095,17.076,20.0]
[1673584685028,10.0,17.097,17.076,20.0]
[1673584685215,17.0,17.096,17.076,20.0]
[1673584685426,10.0,17.097,17.076,20.0]
[1673584686070,10.0,17.099,17.08,31.12]
[1673584686391,17.0,17.098,17.081,20.96]
[1673584690914,108.4587,17.1,17.081,20.96]
[1673584692164,10.0,17.098,17.081,20.96]
[1673584692375,10.0,17.098,17.081,20.0]
[1673584693856,10.0,17.098,17.082,0.96]
[1673584694989,27.0,17.099,17.082,0.96]
[1673584695736,10.0,17.098,17.082,0.96]
[1673584696886,27.0,17.099,17.082,0.96]
[1673584697103,10.0,17.098,17.082,0.96]
[1673584697329,108.4587,17.1,17.082,0.96]
[1673584697523,10.0,17.105,17.082,0.96]
[1673584697743,10.0,17.105,17.083,38.01392664]
[1673584697939,10.0,17.105,17.084,112.4326]
[1673584698152,10.0,17.108,17.09,30.86]
[1673584698361,10.0,17.108,17.091,20.96]
[1673584699313,9.5,17.108,17.092,0.96]
[1673584699521,9.5,17.108,17.093,1.0]
[1673584699942,9.5,17.108,17.092,1.0]
[1673584700153,9.5,17.108,17.093,0.96]
[1673584700468,9.5,17.108,17.094,1.0]
[1673584701329,17.96,17.107,17.094,1.0]
[1673584701751,17.0,17.107,17.095,0.96]
[1673584701942,88.1627,17.109,17.096,1.0]
[1673584702492,88.1627,17.109,17.097,0.96]
[1673584702687,88.1627,17.109,17.098,1.0]
[1673584703307,88.1627,17.109,17.092,110.2062]
[1673584703308,88.1627,17.109,17.099,0.96]
[1673584703620,88.1627,17.109,17.1,1.0]
[1673584704170,10.0,17.108,17.1,1.0]
[1673584704381,10.0,17.108,17.094,1.0]
[1673584705430,88.1627,17.109,17.094,1.0]
[1673584706245,88.1627,17.109,17.095,0.96]
[1673584706458,88.1627,17.109,17.096,1.0]
[1673584706900,88.1627,17.109,17.097,1.92]
[1673584707112,88.1627,17.109,17.098,1.0]
[1673584707515,88.1627,17.109,17.096,1.0]
[1673584707727,88.1627,17.109,17.097,0.96]
[1673584707942,88.1627,17.109,17.098,1.0]
[1673584708475,88.1627,17.109,17.095,1.0]
[1673584708686,88.1627,17.109,17.094,1.0]